fUST/lending_fUST_20240106
["ID","MTS","AMOUNT","RATE_DAILY","PERIOD"]
[310369371,1704513045281,-172.64107636,0.00024489,2]
[310369372,1704513045291,-212.77620315,0.00024587,2]
[310369373,1704513045300,-15867.43030525,0.00024587,2]
[310369374,1704513045310,-10487.05697578,0.00024588,2]
[310369375,1704513045319,-322.14948125,0.00024589,2]
[310369376,1704513045328,-3256.88592321,0.00024589,2]
[310369377,1704513045340,-871.79394782,0.0002459,2]
[310369378,1704513045350,-2068.68169854,0.00024595,2]
[310369379,1704513045359,-32173.06510831,0.00024597,2]
[310369380,1704513045368,-5000.0,0.00024598,2]
[310369382,1704513045378,-2928.8542327,0.00024975,2]
[310369383,1704513045386,-162.00374401,0.00025004,2]
[310369384,1704513045396,-1950.5397082,0.00025104,2]
[310369385,1704513045405,-298.460753,0.00025597,2]
[310369386,1704513045414,-946.0990057,0.00026109,2]
[310369387,1704513045423,-3567.07,0.00026713,3]
[310369388,1704513045433,-24900.0,0.00026723,2]
[310369389,1704513045508,-975.25077315,0.00027261,2]
[310369390,1704513045517,-7177.95770874,0.00027448,2]
[310369391,1704513045527,-162.00374401,0.00027747,2]
[310369392,1704513045536,-346.31119234,0.00028,2]
[310369393,1704513045546,-312.6006807,0.000288,2]
[310369394,1704513045556,-2338.51756181,0.00029684,2]
[310369395,1704513045565,-4280.49,0.00030261,3]
[310369396,1704513045574,-5136.58,0.00030271,3]
[310369397,1704513045583,-6163.9,0.00030281,3]
[310369398,1704513045593,-269.29457861,0.00030291,2]
[310369399,1704513045602,-2032.94928911,0.00030291,4]
[310369400,1704513045611,-4784.50329475,0.00030291,4]
[310369401,1704513045620,-24590.64217374,0.00030292,4]
[310369402,1704513045629,-151.0,0.00030292,2]
[310369403,1704513045639,-151.0,0.00030292,2]
[310369404,1704513045648,-162.00374401,0.00030489,2]
[310369405,1704513045657,-21097.88248936,0.000305,2]
[310369407,1704513045698,-7612.65786453,0.000305,2]
[310369408,1704513045709,-4948.70080302,0.000305,2]
[310369409,1704513045721,-469.45799078,0.000305,2]
[310369411,1704513045732,-3364.71518359,0.000305,2]
[310369418,1704513045810,-847.48423848,0.000305,2]
[310369419,1704513045821,-3439.11616029,0.000305,2]
[310369465,1704513057800,-2633.35645047,0.00020846,2]
[310369466,1704513057832,-554.46443828,0.00020847,2]
[310369467,1704513057864,-1812.17911125,0.00020847,2]
[310369468,1704513057914,-2369.09961915,0.00020847,2]
[310369469,1704513057951,2540.17363101,0.00020846,2]
[310369470,1704513057987,90.72674984,0.00020846,2]
[310369471,1704513058067,-551.68799248,0.00020846,2]
[310369472,1704513060909,629.56644747,0.00020846,2]
[310369473,1704513061347,-5000.0,0.00020846,2]
[310369474,1704513061455,-5000.0,0.00020846,2]
[310369475,1704513061647,-2790.92726846,0.00020846,2]
[310369476,1704513065250,-5000.0,0.00020847,2]
[310369477,1704513065558,-5000.0,0.00020847,2]
[310369478,1704513065891,-5000.0,0.00020847,2]
[310369479,1704513065943,-5000.0,0.00020847,2]
[310369480,1704513066140,-5000.0,0.00020847,2]
[310369481,1704513066247,-5000.0,0.00020847,2]
[310369482,1704513066396,-5000.0,0.00020847,2]
[310369483,1704513066499,-1257.47252222,0.00020847,2]
[310369485,1704513069946,-1554.17611946,0.00020846,2]
[310369486,1704513070045,-31.71787999,0.00020846,2]
[310369487,1704513071201,680.80399318,0.00020846,2]
[310369488,1704513097165,-839.04460704,0.00020847,2]
[310369489,1704513097356,-17.12335933,0.00020847,2]
[310369499,1704513230905,4570.75036752,0.0001631,2]
[310369500,1704513247289,205.37223283,0.000125,2]
[310369503,1704513291715,-298.967409,0.0002377,2]
[310369504,1704513291737,-154.82968734,0.0002377,2]
[310369505,1704513291759,-2091.44093784,0.0002377,2]
[310369506,1704513291779,-164.78197284,0.00023771,2]
[310369507,1704513291800,-154.82968734,0.00023771,2]
[310369508,1704513291820,-166.27946488,0.00023772,2]
[310369509,1704513291922,-198.66992878,0.00023773,2]
[310369510,1704513291943,-242.3851774,0.00023773,2]
[310369511,1704513291963,-2806.42480714,0.00023773,2]
[310369512,1704513291982,-2028.3271136,0.00023774,2]
[310369513,1704513292002,-13681.29969267,0.00023774,2]
[310369514,1704513292022,-6623.1138956,0.00023782,2]
[310369515,1704513292043,-1363.8625791,0.00024595,2]
[310369516,1704513292066,-20837.14538464,0.00024595,2]
[310369517,1704513292086,-155.13675661,0.00024595,2]
[310369518,1704513292106,-155.81473674,0.00024595,2]
[310369519,1704513292128,-398.87695367,0.00024595,2]
[310369520,1704513292151,-1029.74071675,0.00024595,2]
[310369521,1704513292173,-179.00292638,0.00024595,2]
[310369522,1704513292193,-361.25249056,0.00024595,2]
[310369523,1704513292215,-4817.64651922,0.00024596,2]
[310369524,1704513292238,-322.14948125,0.00028553,2]
[310369525,1704513292258,-301.06112899,0.00028555,2]
[310369526,1704513292281,-2685.86,0.00028558,3]
[310369527,1704513292302,-546.10055166,0.00028558,3]
[310369530,1704513313400,966.9843747,0.0001631,2]
[310369536,1704513376604,154.82968734,0.0001631,2]
[310369541,1704513392603,197.38395061,0.0001631,2]
[310369646,1704514232141,-223.83526593,0.0002554,2]
[310369648,1704514232151,-271.72897209,0.0002554,2]
[310369650,1704514232160,-198.66992878,0.00025541,2]
[310369652,1704514232170,-10487.05697578,0.00025541,2]
[310369654,1704514232179,-2091.44093784,0.00025541,2]
[310369656,1704514232188,-2032.94928911,0.00025542,2]
[310369658,1704514232197,-162.60202211,0.00025543,2]
[310369660,1704514232207,-250.0,0.00025555,2]
[310369662,1704514232216,-24900.0,0.0002613,2]
[310369664,1704514232225,-5000.0,0.00026593,2]
[310369666,1704514232234,-298.460753,0.00026785,2]
[310369668,1704514232244,-502.6938218,0.00027327,2]
[310369670,1704514232254,-658.81147892,0.00028558,2]
[310369672,1704514232264,-200.0,0.00028575,15]
[310369674,1704514232273,-312.6006807,0.000288,2]
[310369676,1704514232283,-1607.09,0.0002979,3]
[310369678,1704514232292,-58246.25380983,0.000298,2]
[310369728,1704514238269,-212.77620315,0.0002554,2]
[310369730,1704514238278,-200.0,0.00028094,15]
[310369732,1704514238288,-500.0,0.00029799,4]
[310369734,1704514238297,-500.0,0.00029799,4]
[310369736,1704514238306,-473.54427456,0.00029799,4]
[310369738,1704514238315,-447.66101529,0.00029799,4]
[310369740,1704514238324,-400.84132479,0.00029799,4]
[310369742,1704514238334,-500.0,0.00029799,4]
[310369744,1704514238346,-374.37959164,0.00029799,4]
[310369746,1704514238356,-632.78562696,0.00029799,4]
[310369748,1704514238365,-500.0,0.00029799,4]
[310369750,1704514238375,-630.3900472,0.00029799,4]
[310369762,1704514238486,-542.21994427,0.00029799,2]
[310369765,1704514238501,-485.48908691,0.00029799,2]
[310369767,1704514238513,-424.64281532,0.00029799,2]
[310369769,1704514238522,-2950.46672792,0.000298,2]
[310369771,1704514238535,-14159.68516781,0.000298,2]
[310369774,1704514238589,-557870.75318133,0.000298,2]
[310369776,1704514238601,-475.4,0.000298,2]
[310369802,1704514241234,-249.993024,0.0002979,3]
[310369858,1704514246430,-35.77974823,0.0002979,3]
[310369859,1704514246443,-856.16796637,0.0002979,3]
[310369860,1704514246455,-799.53144397,0.0002979,3]
[310369861,1704514260220,1464.84555445,0.00022349,2]
[310369915,1704514832985,200.0,0.00026367,15]
[310369917,1704514866142,1252.6578284,0.0002297,2]
[310369918,1704514873794,6076.6024275,0.00022969,2]
[310369920,1704515022818,24900.0,0.00022858,2]
[310369922,1704515188181,748.8888,0.00022837,2]
[310369940,1704515421601,297.72458751,0.00022837,2]
[310369998,1704515432368,-271.72897209,0.00023707,2]
[310370000,1704515432377,-154.82968734,0.00023707,2]
[310370003,1704515432389,-154.82968734,0.00023708,2]
[310370005,1704515432399,-871.79394782,0.00023709,2]
[310370006,1704515432409,-166.27946488,0.00023709,2]
[310370009,1704515432428,-1574.6122842,0.00023709,2]
[310370012,1704515432440,-245.82782927,0.0002371,2]
[310370014,1704515432449,-1577.33542027,0.0002371,2]
[310370016,1704515432459,-2633.35645047,0.0002371,2]
[310370018,1704515432470,-198.66992878,0.00023711,2]
[310370020,1704515432480,-242.3851774,0.00023711,2]
[310370022,1704515432490,-212.77620315,0.00023711,2]
[310370024,1704515432500,-322.14948125,0.00023711,2]
[310370026,1704515432510,-172.06936597,0.00023712,2]
[310370028,1704515432520,-2091.44093784,0.00023807,2]
[310370029,1704515432530,-1171.77383703,0.00023808,2]
[310370030,1704515432540,-1029.74071675,0.00023809,2]
[310370031,1704515432549,-322.57910218,0.00023809,2]
[310370032,1704515432560,-10487.05697578,0.0002381,2]
[310370033,1704515432571,-36796.83907326,0.00023811,2]
[310370034,1704515432581,-1204.2071574,0.00026011,2]
[310370035,1704515432591,-976.288089,0.00026011,2]
[310370036,1704515432602,-150.0,0.000277,2]
[310370037,1704515432613,-527.01186461,0.00028904,5]
[310370116,1704515441463,-2294.40332973,0.00028904,5]
[310370117,1704515441474,-320.0046877,0.00029041,2]
[310370118,1704515441484,-153.0,0.00029041,2]
[310370119,1704515441494,-153.0,0.00029041,2]
[310370120,1704515441505,-153.0,0.00029041,2]
[310370121,1704515441516,-153.0,0.00029041,2]
[310370122,1704515441526,-153.0,0.00029041,2]
[310370123,1704515441537,-153.0,0.00029041,2]
[310370124,1704515441549,-331.5431189,0.00029041,2]
[310370125,1704515441560,-153.0,0.00029041,2]
[310370126,1704515441570,-438.7930028,0.000291,2]
[310370127,1704515441579,-153.0,0.00029178,2]
[310370128,1704515441589,-156.6445397,0.00029699,2]
[310370129,1704515441600,-2428.34,0.0002979,3]
[310370130,1704515441610,-224.50687695,0.00029798,2]
[310370131,1704515441621,-694.78708723,0.00029798,2]
[310370132,1704515441632,-163.23465797,0.00029798,2]
[310370133,1704515441644,-586.17383945,0.00029798,2]
[310370134,1704515441657,-469.27046295,0.00029798,2]
[310370135,1704515441668,-2932.94,0.00029799,2]
[310370136,1704515441679,-428.42433734,0.00029799,2]
[310370137,1704515441833,-2504.51566266,0.00029799,2]
[310370138,1704515441844,-2932.94,0.00029799,2]
[310370139,1704515441853,-2932.94,0.00029799,2]
[310370140,1704515441862,-2888.65242469,0.00029799,2]
[310370149,1704515443349,-44.28757531,0.00029799,2]
[310370150,1704515443358,-474.32242469,0.00029799,2]
[310370151,1704515443369,-1510.26,0.00029799,2]
[310370152,1704515443381,-861.211647,0.00029799,2]
[310370153,1704515443392,-87.14592831,0.00029799,2]
[310370154,1704515443401,-379.55396099,0.00029799,2]
[310370155,1704515443411,-424.64281531,0.00029799,2]
[310370156,1704515443420,-360.02697683,0.00029799,2]
[310370167,1704515727301,-606.18577739,0.00024925,2]
[310370168,1704515727323,-294.17313043,0.00024925,2]
[310370169,1704515727343,-154.82968734,0.00024925,2]
[310370170,1704515727365,-852.82114132,0.00024926,2]
[310370171,1704515727389,-249.97382645,0.00024926,2]
[310370172,1704515727410,-264.66072966,0.00024926,2]
[310370173,1704515727431,-292.01079278,0.00024927,2]
[310370174,1704515727451,-613.44573934,0.00025013,2]
[310370175,1704515727472,-2991.89800169,0.00025013,2]
[310370176,1704515727492,-298.967409,0.00025014,2]
[310370177,1704515727513,-1574.6122842,0.00025014,2]
[310370178,1704515727532,-154.82968734,0.00025014,2]
[310370179,1704515727552,-343.70654924,0.00025014,2]
[310370180,1704515727572,-1585.89399945,0.00025014,2]
[310370181,1704515727593,-154.82968734,0.00025015,2]
[310370182,1704515727613,-154.82968734,0.00025015,2]
[310370183,1704515727634,-3000.0,0.00025015,2]
[310370184,1704515727655,-2706.33955526,0.00025015,2]
[310370185,1704515727675,-975.9,0.00025016,3]
[310370186,1704515727696,-1523.7,0.00025016,3]
[310370187,1704515727717,-7937.55374235,0.0002502,2]
[310370188,1704515727737,-520.52631159,0.00025021,2]
[310370189,1704515727757,-154.82968734,0.00025021,2]
[310370190,1704515727777,-326.45250531,0.00025021,2]
[310370191,1704515727798,-154.82968734,0.00025021,2]
[310370192,1704515727820,-322.14948125,0.00025021,2]
[310370193,1704515727842,-871.79394782,0.00025021,2]
[310370194,1704515727863,-154.82968734,0.00025022,2]
[310370195,1704515727887,-4806.7371309,0.00025022,2]
[310370196,1704515727912,-198.66992878,0.00025022,2]
[310370197,1704515727938,-176.40697611,0.00025022,2]
[310370198,1704515727964,-1029.74071675,0.00025022,2]
[310370199,1704515727986,-154.82968734,0.00025022,2]
[310370200,1704515728010,-1577.33542027,0.00025022,2]
[310370201,1704515728036,-2098.68320007,0.00025024,2]
[310370202,1704515728060,-2068.68169854,0.00025025,2]
[310370203,1704515728084,-525.20504904,0.00025026,2]
[310370204,1704515728108,-154.82968734,0.00025026,2]
[310370205,1704515728133,-15867.43030525,0.00025026,2]
[310370206,1704515728157,-55755.8774637,0.00025026,2]
[310370207,1704515743571,763.09084274,0.00022522,5]
[310370208,1704515777572,757.75701723,0.00022428,5]
[310370209,1704515803563,166.666666,0.00022935,2]
[310370210,1704515824785,155.26329674,0.00022522,2]
[310370211,1704515827506,533.6921705,0.00022522,2]
[310370212,1704515828136,-2091.44093784,0.00023558,2]
[310370213,1704515828158,-154.82968734,0.00023558,2]
[310370214,1704515828178,-154.82968734,0.00023558,2]
[310370215,1704515828199,-369.38802941,0.00023559,2]
[310370216,1704515828219,-154.82968734,0.00023559,2]
[310370217,1704515828240,-170.30280351,0.00023559,2]
[310370218,1704515828260,-294.17313043,0.00023559,2]
[310370219,1704515828281,-501.20603679,0.00023559,2]
[310370220,1704515830842,1182.66862152,0.00022522,2]
[310370221,1704515835585,56816.11706674,0.00022522,2]
[310370222,1704515901587,4884.02512067,0.00022522,2]
[310370223,1704515901609,277774.43998382,0.00022522,2]
[310370224,1704515914446,22225.56001618,0.00022544,2]
[310370225,1704515959599,-1553.16389453,0.00022522,2]
[310370226,1704515959620,-508.6242048,0.00022539,2]
[310370227,1704515959643,-1735.74473674,0.00022539,2]
[310370228,1704515959665,-860.12683361,0.00022539,2]
[310370229,1704515959688,-466.43140132,0.0002254,2]
[310370230,1704515959710,-255.10803984,0.0002254,2]
[310370231,1704515959731,-1238.90884901,0.0002254,2]
[310370232,1704515959751,-264.66072966,0.00022541,2]
[310370233,1704515959774,-945.77631142,0.00022541,2]
[310370234,1704515959795,-2068.68169854,0.00022541,2]
[310370235,1704515959815,-2098.68320007,0.00022541,2]
[310370236,1704515959836,-21561.01139483,0.00022541,2]
[310370237,1704515959856,-2028.3271136,0.00022542,2]
[310370238,1704515959876,-301.06112899,0.00022542,2]
[310370239,1704515959897,-322.57910218,0.00022542,2]
[310370240,1704515959918,-2032.94928911,0.00022542,2]
[310370241,1704515959938,-166.27946488,0.00022542,2]
[310370242,1704515959959,-1029.74071675,0.00022542,2]
[310370243,1704515959981,-18472.14189012,0.00022542,2]
[310370244,1704515971232,2117.18352788,0.00016908,5]
[310370245,1704516011116,-4056.93066526,0.00020275,2]
[310370246,1704516011302,-82.79450337,0.00020275,2]
[310370247,1704516011332,-333.37930055,0.00020275,2]
[310370248,1704516012135,154.82968734,0.00016908,2]
[310370249,1704516013769,407.85032784,0.00016908,2]
[310370250,1704516013798,407.85032784,0.00016908,2]
[310370251,1704516013820,872.53423897,0.00016908,2]
[310370252,1704516021599,27134.47413847,0.00016908,2]
[310370253,1704516028128,158.67313063,0.00016908,2]
[310370254,1704516033180,200.0,0.00024652,7]
[310370255,1704516101244,-508.6242048,0.00022171,2]
[310370256,1704516101265,-36796.83907326,0.00022171,2]
[310370257,1704516101286,-301.06112899,0.00022172,2]
[310370258,1704516101307,-230.29533204,0.00022172,2]
[310370259,1704516101329,-322.57910218,0.00022172,2]
[310370260,1704516101349,-3735.0637491,0.00022172,2]
[310370261,1704516101371,-1029.74071675,0.00022172,2]
[310370262,1704516101395,-860.12683361,0.00022172,2]
[310370263,1704516101417,-198.66992878,0.00022172,2]
[310370264,1704516101438,-369.38802941,0.00022172,2]
[310370265,1704516101458,-2300.61190108,0.00022172,2]
[310370266,1704516110583,-1913.6423005,0.00021176,2]
[310370267,1704516110789,-39.0539245,0.00021176,2]
[310370268,1704516110824,1874.588376,0.00021176,2]
[310370269,1704516110861,-78.107849,0.00021176,2]
[310370270,1704516111103,1835.5344515,0.00021176,2]
[310370271,1704516111895,-117.1617735,0.00021176,2]
[310370272,1704516111923,-1911.29906503,0.00021176,2]
[310370273,1704516112084,-41.39715997,0.00021176,2]
[310370274,1704516112113,-1952.696225,0.00021176,2]
[310370275,1704516117109,-712.44349806,0.00021175,2]
[310370276,1704516117416,-14.53966323,0.00021175,2]
[310370277,1704516117446,-326.45250531,0.00021175,2]
[310370278,1704516117903,154.82968734,0.00021175,2]
[310370279,1704516129005,-754.19526294,0.00021167,2]
[310370280,1704516129206,-15.39174006,0.00021167,2]
[310370282,1704516179234,-3752.18399145,0.00021167,2]
[310370283,1704516179285,-76.5751835,0.00021167,2]
[310370284,1704516179867,653.1527316,0.00021058,2]
[310370285,1704516179893,-942.0,0.00022053,2]
[310370286,1704516179989,3022.45607635,0.00021167,2]
[310370287,1704516180018,2187.58035456,0.00021167,2]
[310370288,1704516182117,154.82968734,0.00021167,2]
[310370289,1704516182897,2077.63950727,0.00021167,2]
[310370290,1704516183162,66.1892402,0.00021167,2]
[310370291,1704516184460,-88.64044714,0.00021167,2]
[310370292,1704516184490,-149.96028465,0.00021167,2]
[310370293,1704516184752,-4.86940269,0.00021167,2]
[310370294,1704516184781,-233.7313291,0.00021167,2]
[310370295,1704516184917,-385.24548438,0.00021167,2]
[310370296,1704516184946,-226.12380747,0.00021167,2]
[310370297,1704516185043,-71.80221839,0.00021167,2]
[310370298,1704516185078,533.6921705,0.00021167,2]
[310370299,1704516186087,297.8424083,0.00021167,2]
[310370300,1704516186116,903.33679719,0.00021167,2]
[310370301,1704516186145,321.44586454,0.00021167,2]
[310370302,1704516186363,348.0622155,0.00021167,2]
[310370303,1704516186392,669.50808004,0.00021167,2]
[310370304,1704516186455,-802.70291286,0.00021167,2]
[310370305,1704516188078,342.16724442,0.00021167,2]
[310370306,1704516192363,-154.82968734,0.00021167,2]
[310370307,1704516192393,-290.90340625,0.00021167,2]
[310370308,1704516192640,-9.09659375,0.00021167,2]
[310370309,1704516192667,-436.63649984,0.00021167,2]
[310370310,1704516192959,-3392.12267511,0.00021167,2]
[310370311,1704516192989,-200.0,0.00021167,2]
[310370312,1704516193016,-168.97597822,0.00021167,2]
[310370313,1704516193143,-5000.0,0.00021167,2]
[310370314,1704516193257,-5000.0,0.00021167,2]
[310370315,1704516193367,-5000.0,0.00021167,2]
[310370316,1704516193473,-3682.41001464,0.00021167,2]
[310370317,1704516194501,941.52786815,0.00016552,2]
[310370318,1704516195155,-5000.0,0.00021223,2]
[310370319,1704516195310,-1623.1138956,0.00021223,2]
[310370320,1704516196882,2086.64350715,0.00021167,2]
[310370321,1704516197588,1020.21297213,0.00021166,2]
[310370322,1704516197925,195.16402883,0.00021167,2]
[310370323,1704516197997,1607.33898879,0.00021167,2]
[310370325,1704516198505,747.20376639,0.00021167,2]
[310370326,1704516198691,297.77847946,0.00021167,2]
[310370327,1704516199063,530.20996316,0.00021167,2]
[310370328,1704516199091,3.48220734,0.00021167,2]
[310370329,1704516199168,158.82061881,0.00021166,2]
[310370330,1704516199976,-5000.0,0.00021222,2]
[310370331,1704516200117,154.82968734,0.00021167,2]
[310370332,1704516200242,-5000.0,0.00021222,2]
[310370333,1704516200345,-5000.0,0.00021222,2]
[310370334,1704516205939,-169.23973462,0.00021167,2]
[310370335,1704516205968,-1521.79983113,0.00021167,2]
[310370336,1704516205995,-1820.2732084,0.00021167,2]
[310370337,1704516206023,-342.16724442,0.00021167,2]
[310370338,1704516206054,-154.82968734,0.00021167,2]
[310370339,1704516206082,-289.09359032,0.00021221,2]
[310370340,1704516206111,-170.30280351,0.00021221,2]
[310370341,1704516206140,-532.29390026,0.00021222,2]
[310370342,1704516206177,-5000.0,0.00021222,2]
[310370343,1704516206265,-5000.0,0.00021222,2]
[310370344,1704516206370,-5000.0,0.00021222,2]
[310370345,1704516206659,-154.82968734,0.00021221,2]
[310370346,1704516206689,-4845.17031266,0.00021222,2]
[310370347,1704516206870,-1419.37486034,0.00021222,2]
[310370348,1704516206898,-553.66023323,0.00021222,2]
[310370349,1704516207320,1194.15929222,0.00021221,2]
[310370350,1704516207889,1832.80561421,0.00021166,2]
[310370351,1704516207919,5000.0,0.00021166,2]
[310370352,1704516207946,5000.0,0.00021166,2]
[310370353,1704516207975,1848.49407846,0.00021166,2]
[310370354,1704516208381,85.08031324,0.00021166,2]
[310370355,1704516208410,314.59592243,0.00021166,2]
[310370356,1704516209024,154.82968734,0.00021166,2]
[310370357,1704516210379,-294.0,0.00021167,2]
[310370358,1704516210450,-6.0,0.00021167,2]
[310370359,1704516210481,-288.0,0.00021167,2]
[310370360,1704516210695,-294.0,0.00021167,2]
[310370361,1704516210743,-294.0,0.00021167,2]
[310370362,1704516210951,-2207.56726515,0.00021167,2]
[310370363,1704516210980,-200.0,0.00021167,2]
[310370364,1704516211009,-332.0886547,0.00021167,2]
[310370365,1704516211077,-2739.65591985,0.00021167,2]
[310370366,1704516211227,-1347.78768735,0.00021167,2]
[310370367,1704516213841,253.35268625,0.00021166,2]
[310370368,1704516214967,-208.52067909,0.00021166,2]
[310370369,1704516215153,-4.25552406,0.00021166,2]
[310370370,1704516217467,-157.17804283,0.00021167,2]
[310370371,1704516217496,-520.76934792,0.00021167,2]
[310370372,1704516217675,-677.94739075,0.00021166,2]
[310370373,1704516217785,-193.84655707,0.00021166,2]
[310370374,1704516217814,-13.83566104,0.00021167,2]
[310370375,1704516220879,-1790.01169993,0.00021167,2]
[310370376,1704516220957,-36.53085102,0.00021167,2]
[310370377,1704516221216,245.82782927,0.00021166,2]
[310370378,1704516221470,154.82968734,0.00021166,2]
[310370379,1704516222307,154.82968734,0.00021166,2]
[310370381,1704516229870,-154.82968734,0.00021166,2]
[310370382,1704516229901,-149.50382953,0.00021167,2]
[310370383,1704516230144,-6.2108881,0.00021167,2]
[310370384,1704516230173,-298.12262877,0.00021167,2]
[310370385,1704516230269,-45.3795942,0.00021167,2]
[310370386,1704516231825,258.95392267,0.00021166,2]
[310370387,1704516231853,40.01348633,0.00021166,2]
[310370388,1704516231887,176.40697611,0.00021166,2]
[310370389,1704516232241,87.91305443,0.00021166,2]
[310370390,1704516234422,-76.1454861,0.00021166,2]
[310370391,1704516234451,-351.69978803,0.00021166,2]
[310370392,1704516234640,-8.73153621,0.00021166,2]
[310370393,1704516235189,178.37571644,0.00021166,2]
[310370394,1704516235413,230.29533204,0.00021166,2]
[310370395,1704516244963,-20815.22250008,0.00022028,2]
[310370396,1704516244985,-4806.7371309,0.00022028,2]
[310370397,1704516245006,-768.04036902,0.00022028,2]
[310370398,1704516250882,1424.53512349,0.00021166,5]
[310370399,1704516251905,-2949.56841209,0.00021166,2]
[310370400,1704516252024,-60.19527372,0.00021166,2]
[310370401,1704516263026,-672.3116322,0.00021166,2]
[310370402,1704516263335,-13.72064555,0.00021166,2]
[310370403,1704516275779,-642.41474232,0.00021165,2]
[310370404,1704516275809,-140.19497834,0.00021166,2]
[310370405,1704516275917,-15.97162695,0.00021166,2]
[310370406,1704516276373,766.63809371,0.00021166,2]
[310370407,1704516276405,782.60972066,0.00021166,2]
[310370408,1704516276872,-270.59683569,0.00021166,2]
[310370409,1704516277396,154.82968734,0.00021165,2]
[310370410,1704516277958,154.82968734,0.00021165,2]
[310370411,1704516278899,399.67623567,0.00021165,2]
[310370412,1704516280010,-283.31171851,0.00021165,2]
[310370413,1704516280135,-5.78187181,0.00021165,2]
[310370414,1704516280380,164.78197284,0.00021165,2]
[310370415,1704516287117,-576.7247448,0.00021166,2]
[310370416,1704516287335,-11.76989275,0.00021166,2]
[310370417,1704516287788,564.95485205,0.00021166,2]
[310370418,1704516287820,576.7247448,0.00021166,2]
[310370419,1704516288231,-5000.0,0.00021166,2]
[310370420,1704516288423,-5000.0,0.00021166,2]
[310370421,1704516288526,-5000.0,0.00021166,2]
[310370422,1704516288697,-5000.0,0.00021166,2]
[310370423,1704516288813,-5000.0,0.00021166,2]
[310370424,1704516288951,-5000.0,0.00021166,2]
[310370425,1704516289149,-5000.0,0.00021166,2]
[310370426,1704516289207,-3598.49243633,0.00021166,2]
[310370427,1704516289238,-1401.50756367,0.00021166,2]
[310370428,1704516289272,-675.14733881,0.00021166,2]
[310370429,1704516333339,200.0,0.00024191,7]
[310370430,1704516334085,280.0,0.0002661,15]
[310370431,1704516339572,-5000.0,0.00020997,2]
[310370432,1704516339754,-5000.0,0.00020997,2]
[310370433,1704516339861,-5000.0,0.00020997,2]
[310370434,1704516340036,-5000.0,0.00020997,2]
[310370435,1704516340288,-4900.0,0.00020997,2]
[310370436,1704516344551,-1264.11372229,0.00020996,2]
[310370437,1704516344767,-25.79823923,0.00020996,2]
[310370438,1704516344796,-1194.15929222,0.00020996,2]
[310370439,1704516344825,-154.82968734,0.00020996,2]
[310370440,1704516344900,1059.60260988,0.00020996,2]
[310370441,1704516344928,2434.38982867,0.00020996,2]
[310370442,1704516345048,-1347.29147441,0.00020996,2]
[310370443,1704516345146,-1322.00919997,0.00020996,2]
[310370444,1704516345273,-1322.00919997,0.00020996,2]
[310370445,1704516345376,-5000.0,0.00020996,2]
[310370446,1704516345513,-1195.99737977,0.00020996,2]
[310370447,1704516345542,-3804.00262023,0.00020996,2]
[310370448,1704516345617,-5000.0,0.00020996,2]
[310370449,1704516345700,-5000.0,0.00020996,2]
[310370450,1704516345798,-5000.0,0.00020996,2]
[310370451,1704516345939,-2041.41457734,0.00020996,2]
[310370452,1704516345967,-322.57910218,0.00020996,2]
[310370453,1704516345996,-255.10803984,0.00020996,2]
[310370454,1704516346024,-642.41474232,0.00020996,2]
[310370455,1704516348724,1738.48353832,0.00019792,2]
[310370456,1704516348752,694.38017091,0.00019792,2]
[310370457,1704516349976,-2750.296311,0.00020996,2]
[310370458,1704516350120,-56.12849614,0.00020996,2]
[310370459,1704516350690,2694.16781486,0.00020995,2]
[310370460,1704516350721,2750.296311,0.00020995,2]
[310370461,1704516350753,2105.36994676,0.00020995,2]
[310370462,1704516350904,154.82968734,0.00020995,2]
[310370463,1704516351968,301.06112899,0.00020995,2]
[310370464,1704516352358,253.35268625,0.00020995,2]
[310370465,1704516357396,-253.86120185,0.00020993,2]
[310370466,1704516357534,-5.18084085,0.00020993,2]
[310370467,1704516370687,7549.83407262,0.00019782,2]
[310370468,1704516377738,5000.0,0.00021321,5]
[310370469,1704516388680,4472.96788622,0.0001978,2]
[310370470,1704516393114,-5000.0,0.00020979,2]
[310370471,1704516393401,-4680.6974347,0.00020979,2]